lending/lending_fUSD_20240806
["ID","MTS","AMOUNT","RATE_DAILY","PERIOD"]
[334290124,1722906632574,-1577.90951174,0.00010998,2]
[334290125,1722906637596,-1629.90059157,0.00010997,2]
[334290126,1722906637606,-570.13291769,0.00010998,2]
[334290128,1722906637618,-34677.686,0.00010998,2]
[334290131,1722906637636,-168350.23532071,0.00010998,2]
[334290133,1722906637648,-459.47833776,0.00010998,2]
[334290134,1722906637659,-1693.20796604,0.00010998,2]
[334290135,1722906637671,-1177.38000006,0.00010998,2]
[334290136,1722906637682,-667.80370063,0.00010998,2]
[334290137,1722906637753,-351.92,0.00010998,2]
[334290138,1722906637770,-581.12185604,0.00010998,2]
[334290139,1722906637863,-561.82928208,0.00010998,2]
[334290140,1722906637878,-3024.32137454,0.00010998,2]
[334290141,1722906637891,-845.29367059,0.00010998,2]
[334290142,1722906637955,-744.74833634,0.00010998,2]
[334290143,1722906637967,-2510.72,0.00010998,2]
[334290144,1722906637980,-11775.33259882,0.00010998,2]
[334290147,1722906637994,-423.10202108,0.00010998,2]
[334290156,1722906641713,-250.0,0.00010591,2]
[334290157,1722906641725,-29434.7545195,0.00010998,2]
[334290158,1722906641736,-151.0,0.00010998,2]
[334290159,1722906641747,-151.0,0.00010998,2]
[334290160,1722906641758,-151.0,0.00010998,2]
[334290161,1722906641769,-151.0,0.00010998,2]
[334290162,1722906641779,-151.0,0.00010998,2]
[334290163,1722906641789,-171.736282,0.00010998,2]
[334290164,1722906641800,-171.736282,0.00010998,2]
[334290165,1722906641810,-151.0,0.00010998,2]
[334290166,1722906641820,-151.0,0.00010998,2]
[334290167,1722906641831,-151.0,0.00010998,2]
[334290168,1722906641841,-151.0,0.00010998,2]
[334290169,1722906641851,-151.0,0.00010998,2]
[334290170,1722906641861,-301.543996,0.00010998,2]
[334290171,1722906641872,-151.0,0.00010998,2]
[334290172,1722906641892,-4973.962329,0.00010998,2]
[334290173,1722906641903,-168.2686,0.00010998,2]
[334290174,1722906641912,-4973.962329,0.00010998,2]
[334290175,1722906641922,-2005.3499574,0.00010998,2]
[334290176,1722906641935,-168.2686,0.00010998,2]
[334290177,1722906641945,-151.0,0.00010998,2]
[334290178,1722906641955,-151.0,0.00010998,2]
[334290179,1722906641964,-151.0,0.00010998,2]
[334290180,1722906641975,-151.0,0.00010998,2]
[334290181,1722906641985,-151.0,0.00010998,2]
[334290182,1722906641995,-151.0,0.00010998,2]
[334290183,1722906642004,-151.0,0.00010998,2]
[334290184,1722906642014,-658.5088264,0.00010998,2]
[334290185,1722906642025,-151.0,0.00010998,2]
[334290186,1722906642034,-151.0,0.00010998,2]
[334290187,1722906642044,-206.537895,0.00010998,2]
[334290188,1722906642054,-206.537895,0.00010998,2]
[334290189,1722906642064,-151.0,0.00010998,2]
[334290190,1722906642073,-151.0,0.00010998,2]
[334290191,1722906642083,-151.0,0.00010998,2]
[334290192,1722906642093,-151.0,0.00010998,2]
[334290193,1722906642103,-151.0,0.00010998,2]
[334290194,1722906642112,-150.01,0.00010999,2]
[334290195,1722906642122,-2235.44657801,0.00010999,2]
[334290196,1722906642143,-41947.61413296,0.00011,2]
[334290197,1722906642156,-132104.62234513,0.00011,2]
[334290198,1722906642168,-475.21517826,0.00011,2]
[334290199,1722906642179,-24617.29664748,0.00011,2]
[334290200,1722906642191,-533.1,0.00011,2]
[334290201,1722906642225,-256.89893274,0.00011,2]
[334290202,1722906642237,-558.32882947,0.00011,2]
[334290203,1722906642249,-1809.41,0.00011,2]
[334290204,1722906642260,-2352.05509603,0.00011,2]
[334290205,1722906642272,-3048.32772882,0.00011,2]
[334290206,1722906642284,-865.43927189,0.00011,2]
[334290207,1722906642295,-670.7,0.00011,2]
[334290208,1722906642307,-1609.80555827,0.00011,2]
[334290209,1722906642323,-37967.7313828,0.00011,2]
[334290210,1722906642334,-3200.6762738,0.00011,2]
[334290211,1722906642346,-62251.70045047,0.00011,2]
[334290212,1722906642357,-343.94023381,0.00011,2]
[334290213,1722906642369,-819.68910007,0.00011,2]
[334290214,1722906642383,-423.96120629,0.00011,2]
[334290215,1722906642401,-3374.7737303,0.00011,2]
[334290216,1722906642416,-4010.853084,0.00011,2]
[334290218,1722906642427,-548.75914283,0.00011,2]
[334290219,1722906642438,-492.0,0.00011,2]
[334290220,1722906642449,-3255.0,0.00011,2]
[334290221,1722906642461,-25549.94544281,0.00011,2]
[334290222,1722906642473,-83111.61462018,0.00011,2]
[334290223,1722906642485,-4832.22556236,0.00011,2]
[334290224,1722906642497,-9920.5,0.00011,2]
[334290225,1722906642508,-348.19975115,0.00011,2]
[334290228,1722906642521,-1677.4,0.00011,2]
[334290231,1722906642532,-3755.125,0.00011,2]
[334290232,1722906642544,-4355.31238879,0.00011,2]
[334290233,1722906642555,-2116.81533427,0.00011,2]
[334290234,1722906642567,-2775.94000765,0.00011,2]
[334290235,1722906642578,-4614.72514409,0.00011,2]
[334290236,1722906642590,-312.3160075,0.00011,2]
[334290242,1722906642768,-1075.0,0.00010694,2]
[334290243,1722906642778,-1534.74574209,0.00011,2]
[334290244,1722906642790,-5557.37127244,0.00011,2]
[334290245,1722906642803,-3684.37225614,0.00011,2]
[334290246,1722906642814,-17372.54439704,0.00011,2]
[334290248,1722906642826,-373.02958903,0.00011,2]
[334290250,1722906642838,-331.29996999,0.00011,2]
[334290251,1722906642849,-735.915,0.00011,2]
[334290252,1722906642860,-1310.89655929,0.00011,2]
[334290258,1722906643474,-432.0,0.00011,2]
[334290259,1722906643486,-507.46,0.00011,2]
[334290260,1722906643497,-279.365,0.00011,2]
[334290261,1722906643512,-310.09146052,0.00011,2]
[334290262,1722906643523,-2833.13889606,0.00011,2]
[334290263,1722906643535,-504.59897563,0.00011,2]
[334290264,1722906643548,-297.95376087,0.00011,2]
[334290265,1722906643559,-293.30521316,0.00011,2]
[334290269,1722906645794,-1211.48557,0.00010998,2]
[334290270,1722906645803,-2905.75029098,0.00011,2]
[334290271,1722906645964,-8453.25,0.00011,2]
[334290299,1722906659274,500.0,0.00025,60]
[334290300,1722906710903,350.54,8.621e-05,2]
[334290301,1722906738058,500.0,0.00025,60]
[334290304,1722906805264,500.0,0.00025,60]
[334290308,1722906990838,1406.83,9.55e-05,2]
[334290310,1722907019604,-276.75395515,9.562e-05,2]
[334290311,1722907021681,-267.81102335,9.562e-05,2]
[334290312,1722907022400,-245.1,9.562e-05,2]
[334290313,1722907023018,-227.61995131,9.562e-05,2]
[334290314,1722907023655,-214.40142872,9.562e-05,2]
[334290315,1722907027652,-200.0,9.562e-05,2]
[334290316,1722907029638,-199.98270623,9.562e-05,2]
[334290317,1722907031525,-175.62427933,9.562e-05,2]
[334290318,1722907032173,-150.0,9.562e-05,2]
[334290319,1722907033201,-150.0,9.562e-05,2]
[334290320,1722907034230,-150.0,9.562e-05,2]
[334290321,1722907034827,-150.0,9.562e-05,2]
[334290322,1722907036001,-150.0,9.562e-05,2]
[334290323,1722907036575,-150.0,9.562e-05,2]
[334290324,1722907037211,-150.0,9.562e-05,2]
[334290325,1722907037850,-150.0,9.562e-05,2]
[334290326,1722907038484,-150.0,9.562e-05,2]
[334290327,1722907040145,-150.0,9.562e-05,2]
[334290328,1722907040929,-150.0,9.562e-05,2]
[334290329,1722907041570,-150.0,9.562e-05,2]
[334290330,1722907042191,-150.0,9.562e-05,2]
[334290331,1722907043137,-150.0,9.562e-05,2]
[334290332,1722907044125,-150.0,9.562e-05,2]
[334290333,1722907044869,-150.0,9.562e-05,2]
[334290334,1722907045734,-150.0,9.562e-05,2]
[334290335,1722907046618,-150.0,9.562e-05,2]
[334290336,1722907047403,-150.0,9.562e-05,2]
[334290337,1722907048046,-150.0,9.562e-05,2]
[334290338,1722907048696,-150.0,9.562e-05,2]
[334290339,1722907049319,-150.0,9.562e-05,2]
[334290340,1722907051226,-150.0,9.562e-05,2]
[334290341,1722907051782,-150.0,9.562e-05,2]
[334290342,1722907052436,-150.0,9.562e-05,2]
[334290343,1722907053061,-150.0,9.562e-05,2]
[334290344,1722907053835,-150.0,9.562e-05,2]
[334290345,1722907054485,-150.0,9.562e-05,2]
[334290346,1722907055280,-150.0,9.562e-05,2]
[334290347,1722907055931,-150.0,9.562e-05,2]
[334290348,1722907056581,-150.0,9.562e-05,2]
[334290349,1722907057225,-150.0,9.562e-05,2]
[334290350,1722907060160,-150.0,9.562e-05,2]
[334290351,1722907062236,-150.0,9.562e-05,2]
[334290352,1722907062904,-150.0,9.562e-05,2]
[334290353,1722907063530,-150.0,9.562e-05,2]
[334290354,1722907064233,-150.0,9.562e-05,2]
[334290355,1722907064912,-150.0,9.562e-05,2]
[334290356,1722907065532,-150.0,9.562e-05,2]
[334290357,1722907067067,-150.0,9.562e-05,2]
[334290358,1722907067605,-150.0,9.562e-05,2]
[334290359,1722907068082,-150.0,9.562e-05,2]
[334290360,1722907069137,-150.0,9.562e-05,2]
[334290361,1722907069262,200.0,9.556e-05,2]
[334290362,1722907071698,-150.0,9.562e-05,2]
[334290363,1722907073354,-150.0,9.562e-05,2]
[334290364,1722907074411,-150.0,9.562e-05,2]
[334290365,1722907076658,-150.0,9.562e-05,2]
[334290366,1722907078757,-150.0,9.562e-05,2]
[334290367,1722907080530,300.0,9.561e-05,2]
[334290368,1722907091680,-150.0,9.562e-05,2]
[334290369,1722907092329,-150.0,9.562e-05,2]
[334290371,1722907096988,-150.0,9.562e-05,2]
[334290372,1722907098070,-150.0,9.562e-05,2]
[334290373,1722907098700,-150.0,9.562e-05,2]
[334290374,1722907100831,169.1,9.545e-05,2]
[334290375,1722907101659,-150.0,9.562e-05,2]
[334290376,1722907102269,-150.0,9.562e-05,2]
[334290377,1722907109905,-150.0,9.562e-05,2]
[334290378,1722907111509,-150.0,9.562e-05,2]
[334290379,1722907112099,-150.0,9.562e-05,2]
[334290380,1722907112720,-150.0,9.562e-05,2]
[334290381,1722907113742,-150.0,9.562e-05,2]
[334290382,1722907118686,-150.0,9.562e-05,2]
[334290383,1722907122558,-150.0,9.562e-05,2]
[334290384,1722907123839,-150.0,9.562e-05,2]
[334290386,1722907126766,-150.0,9.562e-05,2]
[334290387,1722907127398,-150.0,9.562e-05,2]
[334290388,1722907128048,-150.0,9.562e-05,2]
[334290389,1722907132776,-150.0,9.562e-05,2]
[334290390,1722907133440,-150.0,9.562e-05,2]
[334290391,1722907142247,-150.0,9.562e-05,2]
[334290392,1722907143059,-150.0,9.562e-05,2]
[334290393,1722907143680,-150.0,9.562e-05,2]
[334290394,1722907147739,-150.0,9.562e-05,2]
[334290395,1722907148800,-150.0,9.562e-05,2]
[334290396,1722907149738,-150.0,9.562e-05,2]
[334290397,1722907153174,-150.0,9.562e-05,2]
[334290398,1722907154141,-150.0,9.562e-05,2]
[334290399,1722907156906,-150.0,9.562e-05,2]
[334290400,1722907157441,-150.0,9.562e-05,2]
[334290401,1722907158079,-150.0,9.562e-05,2]
[334290402,1722907168272,900.96,9.549e-05,2]
[334290403,1722907172379,735.14,9.549e-05,2]
[334290404,1722907199423,1091.15538387,9.549e-05,2]
[334290405,1722907202476,227.63850404,9.549e-05,2]
[334290406,1722907206156,3512.1426611,9.549e-05,2]
[334290407,1722907210435,900.0,9.549e-05,2]
[334290408,1722907214942,300.0,9.549e-05,2]
[334290409,1722907224249,3069.19453458,9.549e-05,2]
[334290410,1722907236484,250.0,9.516e-05,2]
[334290413,1722907314481,227.63850404,9.516e-05,2]
[334290414,1722907316787,438.81,8.219e-05,2]
[334290415,1722907320494,240.0,9.561e-05,2]
[334290416,1722907329267,625.90546542,9.516e-05,2]
[334290417,1722907341079,609.18,9.506e-05,2]
[334290419,1722907344487,227.63850404,9.516e-05,2]
[334290421,1722907441277,300.0,9.561e-05,2]
[334290424,1722907515678,500.0,9.527e-05,2]
[334290427,1722907597835,10208.42,9.526e-05,2]
[334290428,1722907604857,500.0,0.00025,60]
[334290429,1722907615349,500.0,0.00025,60]
[334290430,1722907625006,500.0,0.00025,60]
[334290433,1722907625447,209.5,9.536e-05,2]
[334290436,1722907635991,500.0,0.00025,60]
[334290447,1722907647296,500.0,0.00025,60]
[334290452,1722907656167,500.0,0.00025,60]
[334290453,1722907664605,500.0,0.00025,60]
[334290456,1722907704445,250.0,9.542e-05,2]
[334290458,1722907716181,500.0,0.00025,60]
[334290459,1722907720119,-199.37,9.565e-05,2]
[334290460,1722907720152,-558.14,9.571e-05,2]
[334290461,1722907720179,-1490.72096747,9.621e-05,2]
[334290462,1722907720858,304.69364241,0.00025,60]
[334290463,1722907735356,500.0,0.00025,60]
[334290482,1722907753768,411.88,9.557e-05,2]
[334290525,1722907763610,500.0,0.00025,60]
[334290530,1722907776802,500.0,0.00025,60]
[334290533,1722907792242,500.0,0.00025,60]
[334290534,1722907824018,500.0,0.00025,60]
[334290537,1722907832631,-126.04903253,9.621e-05,2]
[334290538,1722907832640,-336.42,9.636e-05,2]
[334290539,1722907832655,-6439.12317157,0.0001,2]
[334290540,1722907832665,-189.09,0.00010022,2]
[334290542,1722907832675,-179.33,0.00010064,2]
[334290543,1722907832684,-1701.26,0.00010262,2]
[334290544,1722907832693,-300.0,0.00010264,2]
[334290545,1722907832703,-1701.26,0.00010265,2]
[334290546,1722907832712,-1701.26,0.00010268,2]
[334290547,1722907832721,-499.99,0.00010268,2]
[334290548,1722907832730,-321.67,0.00010268,2]
[334290549,1722907832739,-299.99,0.00010268,2]
[334290550,1722907832749,-150.99,0.00010268,2]
[334290551,1722907832758,-150.0,0.0001027,2]
[334290552,1722907832768,-2454.19,0.0001027,2]
[334290553,1722907832777,-999.99,0.0001027,2]
[334290554,1722907832787,-1701.26,0.00010271,2]
[334290555,1722907832796,-12852.9,0.00010271,2]
[334290556,1722907832806,-1701.26,0.00010273,2]
[334290557,1722907832815,-1701.26,0.00010276,2]
[334290558,1722907832824,-5818.21,0.00010276,2]
[334290559,1722907832834,-1701.26,0.00010279,2]
[334290560,1722907832843,-1701.26,0.00010281,2]
[334290561,1722907832856,-1701.26,0.00010284,2]
[334290562,1722907832865,-1701.26,0.00010287,2]
[334290563,1722907832875,-1701.26,0.00010289,2]
[334290564,1722907832885,-1701.26,0.00010292,2]
[334290565,1722907832899,-1701.26,0.00010295,2]
[334290566,1722907832909,-1701.26,0.00010298,2]
[334290567,1722907832919,-1701.26,0.000103,2]
[334290568,1722907832928,-1701.26,0.00010303,2]
[334290569,1722907832937,-1701.26,0.00010306,2]
[334290570,1722907832946,-1701.26,0.00010308,2]
[334290571,1722907832956,-1701.26,0.00010311,2]
[334290572,1722907832966,-1701.26,0.00010314,2]
[334290573,1722907832975,-1421.01,0.00010341,2]
[334290574,1722907832985,-438.81,0.0001045,2]
[334290575,1722907832994,-151.48,0.00010478,2]
[334290576,1722907833005,-253.16,0.00010478,2]
[334290577,1722907833014,-530.56,0.00010478,2]
[334290578,1722907833024,-530.56,0.00010478,2]
[334290579,1722907833034,-530.56,0.00010478,2]
[334290580,1722907833044,-530.56,0.00010478,2]
[334290581,1722907833054,-528.98,0.00010478,2]
[334290582,1722907833064,-348.5,0.00010658,2]
[334290583,1722907833074,-781.4,0.00010661,2]
[334290584,1722907833084,-209.5,0.00010728,2]
[334290585,1722907833094,-735.14,0.00010743,2]
[334290586,1722907833104,-300.0,0.00010748,2]
[334290587,1722907833114,-411.88,0.00010751,2]
[334290588,1722907833124,-9346.791,0.00010798,2]
[334290589,1722907833134,-9833.7151,0.00010872,2]
[334290590,1722907833146,-1000.0,0.00010872,2]
[334290591,1722907833159,-426.02,0.00010877,2]
[334290592,1722907833169,-426.02,0.00010877,2]
[334290593,1722907833179,-426.02,0.00010877,2]
[334290594,1722907833189,-426.02,0.00010877,2]
[334290595,1722907833200,-426.02,0.00010877,2]
[334290596,1722907833210,-426.02,0.00010877,2]
[334290598,1722907833220,-430.08,0.00010877,2]
[334290599,1722907833230,-2789.76342,0.0001089,2]
[334290600,1722907833241,-14993.7331,0.00010898,2]
[334290601,1722907833251,-815.6098,0.00010898,2]
[334290602,1722907833262,-187.2507,0.00010899,2]
[334290603,1722907833278,-815.4848,0.000109,2]
[334290604,1722907833289,-1285.7095,0.000109,2]
[334290605,1722907833299,-871.526,0.000109,2]
[334290606,1722907833308,-187.07182013,0.000109,2]
[334290607,1722907833318,-577.1291,0.000109,2]
[334290608,1722907833328,-250.0,0.00010959,2]
[334290609,1722907833338,-810.0,0.00010972,2]
[334290610,1722907833348,-451.0,0.00010972,2]
[334290611,1722907833360,-1552.0,0.00010972,2]
[334290612,1722907833370,-446.0,0.00010972,2]
[334290613,1722907833380,-150.0,0.00010972,2]
[334290614,1722907833390,-1893.0,0.00010972,2]
[334290615,1722907833405,-550.0,0.00010972,2]
[334290616,1722907833415,-150.0,0.00010972,2]
[334290617,1722907833425,-1158.0,0.00010972,2]
[334290618,1722907833435,-3288.0,0.00010972,2]
[334290619,1722907833444,-1075.0,0.00010972,2]
[334290620,1722907833456,-5129.0,0.00010972,2]
[334290621,1722907833467,-289.0,0.00010972,2]
[334290622,1722907833478,-5837.0,0.00010972,2]
[334290623,1722907833488,-624.052,0.00010972,2]
[334290624,1722907833499,-1583.0,0.00010972,2]
[334290625,1722907833509,-472.15564,0.00010998,2]
[334290626,1722907833520,-472.15564,0.00010998,2]
[334290627,1722907833531,-151.0,0.00010998,2]
[334290628,1722907833541,-323.4246939,0.00010998,2]
[334290629,1722907833552,-1095.0757891,0.00010998,2]
[334290630,1722907833562,-2256.75923731,0.00010999,2]
[334290631,1722907833572,-56307.85228138,0.00011,2]
[334290632,1722907833586,-264.63989011,0.00011,2]
[334290633,1722907833598,-599.46000008,0.00011,2]
[334290634,1722907833619,-3025.514,0.00011,2]
[334290635,1722907833631,-705.08331192,0.00011,2]
[334290636,1722907833642,-4469.08542484,0.00011,2]
[334290637,1722907833660,-2476.60755582,0.00011,2]
[334290638,1722907833672,-17992.03564707,0.00011,2]
[334290639,1722907833684,-655.32758221,0.00011,2]
[334290642,1722907837946,-407.54,9.568e-05,2]
[334290644,1722907837955,-104.31245895,0.00010972,2]
[334290645,1722907837968,-1155.70554105,0.00010972,2]
[334290646,1722907837977,-1355.01445895,0.00011,2]
[334290647,1722907837988,-5378.01616488,0.00011,2]
[334290831,1722907840110,-1241.67838036,0.00011,2]
[334290834,1722907840123,-11694.252164,0.00011,2]
[334290836,1722907840134,-6178.35106938,0.00011,2]
[334290838,1722907840145,-2411.60527276,0.00011,2]
[334290851,1722907840266,-1925.0,0.00010972,2]
[334290853,1722907840280,-7278.11958714,0.00011,2]
[334290871,1722907840461,-336.86019999,0.00011,2]
[334290874,1722907840473,-254.97,0.00011,2]
[334290876,1722907840484,-530.99944052,0.00011,2]
[334290878,1722907840495,-2173.14091211,0.00011,2]
[334290996,1722907842990,-229.074,0.00010972,2]
[334290997,1722907842999,-756.93656888,0.00011,2]
[334290998,1722907843010,-1308.00000413,0.00011,2]
[334290999,1722907843022,-7454.74496183,0.00011,2]
[334291017,1722907843370,-1240.38172753,0.00011,2]
[334291018,1722907844509,500.0,0.00025,60]
[334291022,1722907846234,-9955.0114,0.00011,2]
[334291024,1722907846246,-35523.46148,0.00011,2]
[334291025,1722907846417,-2600.50936236,0.00011,2]
[334291028,1722907880340,504.08338715,0.00025,60]
[334291031,1722907897473,418.72,8.372e-05,2]
[334291032,1722907916494,8106.8312,9.521e-05,2]
[334291033,1722907975748,155.12786675,9.521e-05,2]
[334291037,1722908448909,408.06,8.219e-05,2]
[334291038,1722908453611,4300.0,0.00025,60]
[334291046,1722908808840,250.0,9.291e-05,2]
[334291072,1722908909730,397.42,8.219e-05,2]
[334291074,1722908942912,327.705373,0.00025,60]
[334291121,1722908967097,167.84,9.301e-05,2]
[334291123,1722909032548,-209.92310369,9.793e-05,2]
[334291124,1722909032558,-276.35,9.793e-05,2]
[334291125,1722909032569,-371.03160302,9.795e-05,2]
[334291126,1722909032580,-333.93839698,9.795e-05,2]
[334291127,1722909032590,-276.35,9.796e-05,2]
[334291128,1722909032600,-276.35,9.798e-05,2]
[334291129,1722909032609,-500.0,9.801e-05,2]
[334291130,1722909032619,-276.35,9.801e-05,2]
[334291131,1722909032629,-276.35,9.804e-05,2]
[334291132,1722909032638,-276.35,9.806e-05,2]
[334291133,1722909032648,-276.35,9.809e-05,2]
[334291134,1722909032659,-499.99,9.809e-05,2]
[334291135,1722909032668,-276.35,9.811e-05,2]
[334291136,1722909032678,-276.35,9.814e-05,2]
[334291137,1722909032688,-276.35,9.816e-05,2]
[334291138,1722909032698,-276.35,9.819e-05,2]
[334291139,1722909032708,-276.35,9.822e-05,2]
[334291140,1722909032718,-276.35,9.824e-05,2]
[334291141,1722909032728,-276.35,9.827e-05,2]
[334291142,1722909032738,-276.35,9.829e-05,2]
[334291143,1722909032748,-276.35,9.832e-05,2]
[334291144,1722909032758,-276.35,9.834e-05,2]
[334291145,1722909032767,-276.35,9.837e-05,2]
[334291146,1722909032779,-276.35,9.84e-05,2]
[334291147,1722909032788,-24.42456421,9.84e-05,2]
[334291148,1722909032801,-174.94543579,9.84e-05,2]
[334291149,1722909032811,-276.35,9.842e-05,2]
[334291150,1722909032820,-150.0,9.86e-05,2]
[334291151,1722909032830,-433.73190285,9.86e-05,2]
[334291152,1722909032842,-319.13809715,9.86e-05,2]
[334291153,1722909032851,-5368.11064973,9.871e-05,2]
[334291181,1722909033339,-5909.6597775,9.871e-05,2]
[334291184,1722909033351,-556.26670477,9.871e-05,2]
[334291193,1722909038243,-277.60947535,9.871e-05,2]
[334291194,1722909038256,-1279.42339265,9.871e-05,2]
[334291195,1722909038266,-247.13,9.876e-05,2]
[334291196,1722909038276,-150.0,9.918e-05,2]
[334291197,1722909038285,-150.57,9.922e-05,2]
[334291198,1722909038295,-174.93,0.00010008,2]
[334291199,1722909038305,-150.0,0.00010137,2]
[334291200,1722909038314,-800.0,0.000103,3]
[334291201,1722909038324,-1600.0,0.000104,3]
[334291202,1722909038334,-154.161,0.00010427,2]
[334291203,1722909038344,-397.42,0.00010439,2]
[334291204,1722909038353,-605.50081861,0.0001045,2]
[334291205,1722909038363,-2400.0,0.000105,3]
[334291206,1722909038373,-796.89164688,0.00010576,2]
[334291207,1722909038385,-37.76835312,0.00010576,2]
[334291208,1722909038394,-834.66,0.00010576,2]
[334291209,1722909038404,-481.89,0.000106,2]
[334291210,1722909038414,-3200.0,0.000106,3]
[334291211,1722909038424,-530.56,0.00010647,2]
[334291212,1722909038434,-4000.0,0.000107,3]
[334291213,1722909038444,-868.87073684,0.000108,2]
[334291215,1722909038454,-800.0,0.000108,3]
[334291217,1722909038464,-255.0,0.00010846,2]
[334291219,1722909038473,-426.02,0.00010877,2]
[334291221,1722909038490,-426.02,0.00010877,2]
[334291223,1722909038500,-426.02,0.00010877,2]
[334291225,1722909038509,-426.02,0.00010877,2]
[334291227,1722909038519,-426.02,0.00010877,2]
[334291229,1722909038529,-426.02,0.00010877,2]
[334291231,1722909038539,-426.02,0.00010877,2]
[334291233,1722909038548,-426.02,0.00010877,2]
[334291235,1722909038559,-426.02,0.00010877,2]
[334291237,1722909038569,-426.02,0.00010877,2]
[334291239,1722909038579,-426.02,0.00010877,2]
[334291241,1722909038589,-426.37,0.00010877,2]
[334291243,1722909038599,-426.02,0.00010877,2]
[334291245,1722909038610,-4184.7984,0.00010899,2]
[334291247,1722909038620,-5021.3695,0.00010899,2]
[334291249,1722909038630,-6329.1307,0.000109,2]
[334291251,1722909038639,-2601.7873,0.000109,2]
[334291253,1722909038649,-999.8637,0.000109,2]
[334291255,1722909038660,-800.0,0.000109,3]
[334291257,1722909038670,-500.0,0.00010912,2]
[334291259,1722909038680,-150.0,0.00010959,2]
[334291261,1722909038689,-250.0,0.00010959,2]
[334291263,1722909038701,-18565.69131004,0.00010962,2]
[334291509,1722909043403,-1014.6249167,0.00010962,2]
[334291510,1722909043415,-41718.90812352,0.00010962,2]
[334291511,1722909043425,-622.0,0.00010972,2]
[334291512,1722909043435,-1925.0,0.00010972,2]
[334291513,1722909043445,-1256.0,0.00010972,2]
[334291514,1722909043455,-1583.0,0.00010972,2]
[334291515,1722909043464,-942.808,0.00010972,2]
[334291516,1722909043473,-406.267,0.00010972,2]
[334291517,1722909043491,-810.0,0.00010972,2]
[334291518,1722909043501,-551.0,0.00010972,2]
[334291519,1722909043510,-1893.0,0.00010972,2]
[334291520,1722909043520,-150.302,0.00010972,2]
[334291521,1722909043529,-3289.0,0.00010972,2]
[334291522,1722909043538,-150.39,0.00010972,2]
[334291523,1722909043547,-1158.0,0.00010972,2]
[334291524,1722909043556,-3761.025,0.00010972,2]
[334291525,1722909043566,-289.0,0.00010972,2]
[334291526,1722909043575,-1179.725,0.00010972,2]
[334291527,1722909043585,-5837.0,0.00010972,2]
[334291528,1722909043594,-150.0,0.00010972,2]
[334291529,1722909043604,-150.0,0.00010972,2]
[334291530,1722909043614,-1075.0,0.00010972,2]
[334291531,1722909043623,-150.123,0.00010972,2]
[334291532,1722909043633,-664.432212,0.00010998,2]
[334291533,1722909043642,-3525.8007812,0.00010998,2]
[334291534,1722909043652,-230689.29309372,0.00011,2]
[334291538,1722909044853,-9807.37517193,0.00011,2]
[334291539,1722909044866,-337.773044,0.00011,2]
[334291540,1722909044897,-10516.58627487,0.00011,2]
[334291546,1722909313915,187.49,0.00017798,120]
[334291549,1722909491450,376.22,8.219e-05,2]
[334291550,1722909548421,155.11792759,8.219e-05,2]
[334291552,1722909691686,150.1076545,8.219e-05,2]
[334291565,1722910033486,365.76,8.219e-05,2]
[334291603,1722910232420,-300.0,9.816e-05,2]
[334291605,1722910232434,-197.71,9.816e-05,2]
[334291606,1722910232444,-1658.83384195,9.817e-05,2]
[334291608,1722910232455,-15369.03,9.817e-05,2]
[334291610,1722910232465,-1658.83384195,9.819e-05,2]